bitfinex/quotes_BTCUSD_20251205
["timestamp","ask_amount","ask_price","bid_price","bid_amount"]
[1764945548634,0.00099999,90350.0,90347.0,0.01106843]
[1764945548869,0.25491007,90360.0,90357.0,0.01626]
[1764945549088,0.02150397,90352.0,90351.0,0.01106794]
[1764945549301,0.0102639,90352.0,90331.0,0.01626]
[1764945549517,0.0102639,90352.0,90337.0,0.01106966]
[1764945549518,0.323,90340.0,90337.0,0.01106966]
[1764945549805,0.0102639,90339.0,90338.0,0.22138981]
[1764945550042,0.0102639,90339.0,90337.0,0.01106966]
[1764945550043,0.0102639,90342.0,90341.0,0.22138342]
[1764945550265,0.01199999,90350.0,90339.0,0.01106941]
[1764945550266,0.02150397,90346.0,90345.0,0.2324415]
[1764945550479,0.04945114,90346.0,90345.0,0.2324415]
[1764945550698,0.04945114,90346.0,90341.0,0.01106917]
[1764945550922,0.02150397,90340.0,90339.0,0.01106941]
[1764945551150,0.02150397,90337.0,90336.0,0.01106978]
[1764945551564,0.03177114,90337.0,90336.0,0.01106978]
[1764945551962,0.02794717,90337.0,90336.0,0.06854978]
[1764945552167,0.01768,90337.0,90336.0,0.06854978]
[1764945552379,0.57415349,90360.0,90347.0,0.2324347]
[1764945552516,0.02150397,90362.0,90360.0,0.22133543]
[1764945552715,0.277609,90365.0,90361.0,0.01106672]
[1764945552946,0.02794994,90364.0,90362.0,0.01106659]
[1764945553179,0.01026994,90363.0,90362.0,0.01106659]
[1764945553341,0.00161287,90370.0,90367.0,0.22131972]
[1764945553342,0.02150397,90368.0,90367.0,0.22131972]
[1764945553668,0.01508,90377.0,90367.0,0.22131972]
[1764945553669,0.00099999,90380.0,90378.0,0.22129279]
[1764945553834,0.02150397,90376.0,90373.0,0.01106525]
[1764945554029,0.01026697,90375.0,90374.0,0.23236695]
[1764945554415,0.02150397,90376.0,90374.0,0.23236695]
[1764945554416,0.02150397,90376.0,90374.0,0.22130196]
[1764945554644,0.02150397,90376.0,90370.0,0.01106561]
[1764945554645,0.0120656,90370.0,90363.0,0.23239537]
[1764945554844,0.02150397,90366.0,90364.0,0.23239248]
[1764945554976,0.22132707,90364.0,90359.0,0.01106696]
[1764945555338,0.22132707,90364.0,90348.0,0.01106831]
[1764945555339,0.01106782,90352.0,90348.0,0.01106831]
[1764945555545,0.01106855,90346.0,90310.0,0.57415349]
[1764945555747,0.22137097,90347.0,90310.0,0.57415349]
[1764945555748,0.02150397,90348.0,90346.0,0.22137022]
[1764945555957,0.2324115,90357.0,90354.0,0.01106757]
[1764945556168,0.323,90359.0,90356.0,0.01106733]
[1764945556373,0.01768,90356.0,90355.0,0.01106745]
[1764945556510,0.01758,90356.0,90355.0,0.01106745]
[1764945556725,0.01758,90356.0,90348.0,0.001]
[1764945556726,0.22136367,90350.0,90348.0,0.001]
[1764945556929,0.02150397,90349.0,90348.0,0.001]
[1764945557742,0.05289373,90349.0,90348.0,0.001]
[1764945557967,0.02150397,90338.0,90337.0,0.01106966]
[1764945558264,0.02150397,90336.0,90335.0,0.0110699]
[1764945558460,0.01768,90338.0,90335.0,0.0110699]
[1764945558687,0.01768,90338.0,90336.0,0.22139567]
[1764945559049,0.01768,90338.0,90336.0,0.22139527]
[1764945559307,0.01768,90338.0,90332.0,0.01107027]
[1764945559486,0.03668,90338.0,90333.0,0.01107015]
[1764945559681,0.01768,90338.0,90335.0,0.23246625]
[1764945559863,0.01768,90338.0,90336.0,0.22139433]
[1764945560049,0.03257203,90350.0,90346.0,0.01106855]
[1764945560247,0.23240698,90359.0,90353.0,0.0110677]
[1764945560511,0.02150397,90349.0,90347.0,0.01106843]
[1764945560716,0.02150397,90349.0,90348.0,0.2324331]
[1764945561136,0.57415349,90357.0,90355.0,0.22134856]
[1764945561333,0.03918397,90358.0,90356.0,0.22134589]
[1764945561334,0.01768,90358.0,90356.0,0.22134589]
[1764945561538,0.33567922,90364.0,90361.0,0.01106672]
[1764945561769,0.02150397,90361.0,90359.0,0.01106696]
[1764945561969,0.02150397,90360.0,90359.0,0.01106696]
[1764945562172,0.02150397,90350.0,90349.0,0.01106819]
[1764945562399,0.02150397,90348.0,90347.0,0.00011965]
[1764945562609,0.07186475,90348.0,90347.0,0.00011965]
[1764945563017,0.02150397,90348.0,90347.0,0.00011965]
[1764945564470,0.02350397,90348.0,90347.0,0.00011965]
[1764945564672,0.37707433,90348.0,90347.0,0.00011965]
[1764945564880,0.26756024,90348.0,90347.0,0.00011965]
[1764945565031,0.22336627,90348.0,90347.0,0.00011965]
[1764945565234,0.25700627,90348.0,90347.0,0.00111965]
[1764945565448,0.25704627,90348.0,90347.0,0.00111965]
[1764945565651,0.27855024,90348.0,90347.0,0.00111965]
[1764945565831,0.018,90348.0,90347.0,0.22248837]
[1764945566029,0.03568,90348.0,90347.0,0.27724837]
[1764945566438,0.018,90348.0,90347.0,0.27724837]
[1764945567752,0.016,90348.0,90347.0,0.27724837]
[1764945568043,0.57515348,90380.0,90378.0,0.22129187]
[1764945568244,0.24278706,90382.0,90378.0,0.22129249]
[1764945568245,0.01768,90379.0,90378.0,0.22129249]
[1764945568388,0.02874451,90379.0,90373.0,0.01106525]
[1764945568595,0.01106488,90376.0,90340.0,1.10692395]
[1764945568795,0.01106488,90376.0,90368.0,0.23238284]
[1764945568796,0.24281343,90372.0,90368.0,0.23238284]
[1764945569137,0.24281343,90372.0,90368.0,0.23238279]
[1764945569138,0.01764,90371.0,90368.0,0.23238279]
[1764945569327,0.23895041,90371.0,90368.0,0.01106586]
[1764945569574,0.0110661,90366.0,90362.0,0.23239641]
[1764945569781,0.01106623,90365.0,90361.0,0.01716]
[1764945569925,0.01106623,90365.0,90358.0,0.23240861]
[1764945569926,0.22133282,90362.0,90359.0,0.23240501]
[1764945570131,0.22133282,90362.0,90355.0,0.01106745]
[1764945570132,0.02150397,90360.0,90355.0,0.01106745]
[1764945570344,0.02150397,90355.0,90354.0,0.22135157]
[1764945570708,0.01764,90359.0,90358.0,0.22134177]
[1764945570909,0.03914397,90359.0,90358.0,0.22134177]
[1764945571508,0.03914397,90359.0,90356.0,0.01106733]
[1764945571509,0.02150397,90357.0,90356.0,0.01106733]
[1764945571727,0.02150397,90357.0,90354.0,0.22135157]
[1764945571728,0.02150397,90357.0,90354.0,0.22335157]
[1764945571922,0.02870696,90359.0,90355.0,0.22134885]
[1764945571923,0.24284654,90358.0,90355.0,0.22134885]
[1764945572178,0.24284654,90358.0,90354.0,0.23441896]
[1764945572349,0.22134422,90357.0,90354.0,0.002]
[1764945572555,0.02150397,90356.0,90355.0,0.23241657]
[1764945572954,0.01106708,90358.0,90356.0,0.22134556]
[1764945573191,0.24840965,90358.0,90355.0,0.01206745]
[1764945573506,0.016,90358.0,90355.0,0.01206745]
[1764945573792,0.016,90358.0,90356.0,0.22134637]
[1764945573975,0.016,90358.0,90355.0,0.01206745]
[1764945574173,0.016,90358.0,90357.0,0.22134422]
[1764945574384,0.01764,90359.0,90357.0,0.22134422]
[1764945574595,0.01764,90359.0,90358.0,0.22134177]
[1764945575159,0.01764,90359.0,90353.0,0.23242039]
[1764945575160,0.02150397,90354.0,90343.0,0.01106892]
[1764945575362,0.02150397,90344.0,90343.0,0.02213784]
[1764945575604,0.02150397,90344.0,90337.0,0.01106966]
[1764945575605,0.02150397,90342.0,90337.0,0.01106966]
[1764945575820,0.02150397,90335.0,90333.0,0.22140154]
[1764945576026,0.02150397,90330.0,90327.0,0.23248658]
[1764945576270,0.02150397,90328.0,90327.0,0.01107088]
[1764945576442,0.03914397,90329.0,90328.0,0.22141528]
[1764945576645,0.02870966,90337.0,90332.0,0.01107027]
[1764945576874,0.02150397,90330.0,90329.0,0.01107064]
[1764945577078,0.02150397,90330.0,90329.0,0.2326024]
[1764945577282,0.02150397,90332.0,90330.0,0.22141038]
[1764945577451,0.25398236,90332.0,90329.0,0.00011965]
[1764945577654,0.2214088,90331.0,90329.0,0.00011965]
[1764945578823,0.03257424,90332.0,90329.0,0.00011965]
[1764945579034,0.002,90331.0,90329.0,0.23260222]
[1764945579267,0.002,90331.0,90329.0,0.00011965]
[1764945579680,0.01,90331.0,90330.0,0.02261]
[1764945579932,0.01,90331.0,90330.0,0.02914481]
[1764945580144,0.01,90331.0,90329.0,0.2225317]
[1764945580145,0.02150397,90330.0,90329.0,0.2225317]
[1764945580350,0.04914397,90331.0,90329.0,0.2225317]
[1764945580581,0.04714397,90331.0,90329.0,0.2225317]
[1764945580797,0.24904826,90331.0,90329.0,0.00111965]
[1764945580998,0.24104826,90331.0,90329.0,0.00011965]
[1764945581414,0.23904826,90331.0,90329.0,0.00111965]
[1764945581624,0.01764,90331.0,90329.0,0.22253088]
[1764945581823,0.01764,90331.0,90329.0,0.00111965]
[1764945582026,0.23904823,90331.0,90329.0,0.00111965]
[1764945582228,0.2390491,90331.0,90329.0,0.00011965]
[1764945582378,0.02150397,90330.0,90329.0,0.00111965]
[1764945582801,0.15136894,90330.0,90329.0,0.00111965]
[1764945583030,0.71978894,90330.0,90329.0,0.00111965]
[1764945583293,0.34450397,90330.0,90329.0,0.00111965]
[1764945583483,0.39880397,90330.0,90329.0,0.00111965]
[1764945583776,0.85363297,90330.0,90329.0,0.00111965]
[1764945584100,0.91615596,90330.0,90329.0,0.00011965]
[1764945584418,0.85363297,90330.0,90329.0,0.00011965]
[1764945584798,0.86163297,90330.0,90329.0,0.00111965]
[1764945585126,0.74719297,90330.0,90329.0,0.00111965]
[1764945585302,0.45642297,90330.0,90329.0,0.00111965]
[1764945585479,0.02950397,90330.0,90329.0,0.00111965]
[1764945585680,0.04714397,90330.0,90329.0,0.00111965]
[1764945585894,0.04878,90330.0,90329.0,0.00111965]
[1764945586072,0.01107199,90318.0,90313.0,0.23252382]
[1764945586423,0.01764,90317.0,90315.0,0.22144652]
[1764945586633,0.23908239,90317.0,90314.0,0.01107248]
[1764945586833,0.02150397,90313.0,90312.0,0.23252723]
[1764945587213,0.01107235,90315.0,90309.0,0.12505041]
[1764945587410,0.02150397,90312.0,90309.0,0.35758436]
[1764945587810,0.03257669,90312.0,90309.0,0.12505041]
[1764945587991,0.22145941,90310.0,90309.0,0.12505041]
[1764945588194,0.24296338,90310.0,90309.0,0.12505041]
[1764945588634,0.24296338,90310.0,90309.0,0.14005041]
[1764945588804,0.26442338,90310.0,90309.0,0.14205041]
[1764945589007,0.61860338,90310.0,90309.0,0.12705041]
[1764945589207,1.37500738,90310.0,90309.0,0.12705041]
[1764945589426,1.38000738,90310.0,90309.0,0.12805041]
[1764945589826,1.48971244,90310.0,90309.0,0.12805041]
[1764945590324,1.48971244,90310.0,90309.0,0.12605041]
[1764945590595,1.48471244,90310.0,90309.0,0.12505041]
[1764945590766,1.48671244,90310.0,90309.0,0.12505041]
[1764945591075,1.49271244,90310.0,90309.0,0.12605041]
[1764945591287,1.49071244,90310.0,90309.0,0.12605041]
[1764945591712,1.49271244,90310.0,90309.0,0.12605041]
[1764945593307,1.50927979,90310.0,90309.0,0.12605041]
[1764945593510,1.39957473,90310.0,90309.0,0.12605041]
[1764945593723,1.39957473,90310.0,90304.0,0.1]
[1764945593725,1.47231619,90310.0,90304.0,0.1]
[1764945593931,2.62854033,90288.0,90250.0,0.0004]
[1764945594072,0.06252299,90272.0,90250.0,0.0004]
[1764945594285,2.60709035,90266.0,90265.0,0.09914058]
[1764945594529,2.60709035,90266.0,90230.0,0.0004]
[1764945594530,0.02150397,90241.0,90230.0,0.0004]
[1764945594726,1.21860071,90241.0,90230.0,0.0004]
[1764945594927,1.77389063,90239.0,90238.0,0.0325067]
[1764945595129,1.84836452,90239.0,90238.0,0.0325067]
[1764945595389,1.76433756,90239.0,90238.0,0.0325067]
[1764945595602,1.33141953,90239.0,90238.0,0.0325067]
[1764945596170,1.37626252,90239.0,90238.0,0.0325067]
[1764945596532,0.91067553,90239.0,90238.0,0.0325067]
[1764945596827,0.73116106,90239.0,90238.0,0.0325067]
[1764945597112,0.74431444,90239.0,90238.0,0.0325067]
[1764945597336,0.72663444,90239.0,90238.0,0.0325067]
[1764945597635,0.75035444,90239.0,90238.0,0.0345067]
[1764945597791,0.71348106,90239.0,90238.0,0.0325067]
[1764945598008,0.80386672,90239.0,90238.0,0.0325067]
[1764945598199,0.79414672,90239.0,90238.0,0.0345067]
[1764945598404,0.78614672,90239.0,90238.0,0.0325067]
[1764945598606,0.78814672,90239.0,90238.0,0.0325067]
[1764945598771,0.75034373,90239.0,90238.0,0.0335067]
[1764945599175,0.58539986,90239.0,90238.0,0.0335067]
[1764945599388,0.74235686,90239.0,90238.0,0.0335067]
[1764945599832,0.74035686,90239.0,90238.0,0.03541582]
[1764945600287,0.70413289,90239.0,90238.0,0.03541582]
[1764945600459,1.24229386,90239.0,90238.0,0.03541582]
[1764945600659,0.57939986,90239.0,90238.0,0.03385582]
[1764945600917,0.57939986,90239.0,90238.0,0.06259582]
[1764945600918,0.23951322,90239.0,90238.0,0.06259582]
[1764945601052,0.36269322,90239.0,90238.0,0.03585582]
[1764945601261,0.36269322,90239.0,90238.0,0.03385582]
[1764945601262,0.53687397,90239.0,90238.0,0.03385582]
[1764945601464,0.85987397,90239.0,90238.0,0.03385582]
[1764945601685,0.86187397,90239.0,90238.0,0.03485582]
[1764945602085,0.69156437,90239.0,90238.0,0.03385582]
[1764945602286,0.70932437,90239.0,90238.0,0.03385582]
[1764945602631,0.69956437,90239.0,90238.0,0.03585582]
[1764945602806,0.71732437,90239.0,90238.0,0.03585582]
[1764945603022,0.69956437,90239.0,90238.0,0.03585582]
[1764945603228,0.01824674,90239.0,90238.0,0.03585582]
[1764945603374,0.00811956,90239.0,90238.0,0.03585582]
[1764945603585,0.00811956,90239.0,90238.0,0.32681193]
[1764945603586,0.02787956,90239.0,90238.0,0.32681193]
[1764945603789,0.01987956,90239.0,90238.0,0.06259582]
[1764945604016,0.00911956,90239.0,90238.0,0.10517582]
[1764945604272,0.02687956,90239.0,90238.0,0.10517582]
[1764945604471,0.02150397,90263.0,90261.0,0.01107898]
[1764945604690,0.01656735,90265.0,90262.0,0.25397603]
[1764945604902,0.01012792,90268.0,90265.0,0.01107849]
[1764945605111,0.00099999,90270.0,90265.0,0.01107849]
[1764945605112,0.01776,90267.0,90265.0,0.01107849]
[1764945605317,0.2393288,90266.0,90262.0,0.02132]
[1764945605516,0.72315962,90272.0,90262.0,0.02132]
[1764945605517,0.323,90271.0,90266.0,0.02874]
[1764945605849,0.02150397,90262.0,90261.0,0.00039936]
[1764945606260,0.24308115,90262.0,90261.0,0.00039936]
[1764945606463,0.24469402,90262.0,90261.0,0.00039936]
[1764945606639,0.26245402,90262.0,90261.0,0.00039936]
[1764945606846,0.24469402,90262.0,90261.0,0.00039936]
[1764945607070,0.26245402,90262.0,90261.0,0.00039936]
[1764945607263,0.69284066,90262.0,90261.0,0.00039936]
[1764945607470,2.69284066,90262.0,90261.0,0.00039936]
[1764945607875,2.75736365,90262.0,90261.0,0.00039936]
[1764945608032,2.75836365,90262.0,90261.0,0.00186117]
[1764945608237,0.56613763,90239.0,90238.0,0.0319467]
[1764945608443,1.09065661,90239.0,90238.0,0.0319467]
[1764945608645,0.84510661,90239.0,90238.0,0.0319467]
[1764945609330,0.59604961,90239.0,90238.0,0.0319467]
[1764945609535,0.82600811,90239.0,90238.0,0.0319467]
[1764945609768,0.9062911,90239.0,90238.0,0.0319467]
[1764945610410,0.9062911,90239.0,90238.0,0.0228267]
[1764945610819,0.9062911,90239.0,90238.0,0.02473582]
[1764945610973,0.9102911,90239.0,90238.0,0.02573582]
[1764945611183,0.9132911,90239.0,90238.0,0.02573582]
[1764945611593,0.8220226,90239.0,90238.0,0.02573582]
[1764945611987,0.8397826,90239.0,90238.0,0.02573582]
[1764945612625,0.8220226,90239.0,90238.0,0.02573582]
[1764945612826,0.8397826,90239.0,90238.0,0.02573582]
[1764945614071,0.8397826,90239.0,90221.0,0.13469835]
[1764945614072,0.62868027,90231.0,90221.0,0.13469835]
[1764945614277,2.63881952,90231.0,90230.0,1e-08]
[1764945614478,0.01108622,90202.0,90199.0,0.13586033]
[1764945614706,2.62875645,90200.0,90199.0,0.13586033]
[1764945614922,2.6388957,90200.0,90199.0,0.13586033]
[1764945615339,2.59574558,90200.0,90199.0,0.13586033]
[1764945615545,2.65826857,90200.0,90199.0,0.13586033]
[1764945615766,1.12358419,90200.0,90199.0,0.13586033]
[1764945615979,1.12358419,90200.0,90171.0,0.01109004]
[1764945615980,0.0110909,90164.0,90155.0,0.01108492]
[1764945616188,0.485802,90156.0,90155.0,0.00608492]
[1764945616394,0.45754909,90156.0,90155.0,0.00608492]
[1764945616949,0.03325609,90156.0,90155.0,0.00608492]
[1764945617133,0.18589645,90156.0,90155.0,0.00608492]
[1764945617338,0.16809645,90156.0,90155.0,0.00608492]
[1764945617537,0.18589645,90156.0,90155.0,0.00608492]
[1764945617738,0.18889645,90156.0,90155.0,0.00708492]
[1764945617934,0.18589645,90156.0,90155.0,0.00608492]
[1764945618296,0.02833861,90156.0,90155.0,0.00608492]
[1764945618500,0.05084258,90156.0,90155.0,0.00908492]
[1764945618722,0.03133861,90156.0,90155.0,0.00908492]
[1764945618852,0.05284258,90156.0,90155.0,0.00908492]
[1764945619055,0.05084258,90156.0,90155.0,0.00908492]
[1764945619258,0.02933861,90156.0,90155.0,0.03782492]
[1764945619462,0.03304258,90156.0,90155.0,0.07840492]
[1764945619660,0.02937861,90156.0,90155.0,0.03782492]
[1764945619865,0.02837861,90156.0,90155.0,0.03482492]
[1764945620068,0.03037861,90156.0,90155.0,0.04630397]
[1764945620250,0.05188258,90156.0,90155.0,0.04630397]
[1764945620473,0.04988258,90156.0,90155.0,0.00856397]
[1764945620688,0.02937861,90156.0,90155.0,0.00856397]
[1764945620924,0.14675159,90156.0,90155.0,0.02256397]
[1764945621135,0.14675159,90156.0,90155.0,0.00856397]
[1764945621136,0.04988258,90156.0,90155.0,0.00856397]
[1764945621533,0.01253861,90156.0,90155.0,0.04630397]
[1764945621906,0.03037861,90156.0,90155.0,0.01756397]
[1764945622132,0.05188258,90156.0,90155.0,0.01756397]
[1764945622346,0.05349545,90156.0,90155.0,0.01756397]
[1764945622558,0.05449545,90156.0,90155.0,0.01756397]
[1764945622706,0.37749545,90156.0,90155.0,0.01756397]
[1764945622909,0.37749545,90156.0,90155.0,0.00856397]
[1764945622910,0.37549545,90156.0,90155.0,0.00856397]
[1764945623295,0.35965545,90156.0,90155.0,0.01656397]
[1764945623493,0.37749545,90156.0,90155.0,0.01656397]
[1764945623696,0.01053861,90156.0,90155.0,0.07788397]
[1764945623894,0.02833861,90156.0,90155.0,0.07788397]
[1764945624096,0.03233861,90156.0,90155.0,0.07888397]
[1764945624298,0.03133861,90156.0,90155.0,0.07788397]
[1764945624782,0.05184258,90156.0,90155.0,0.08588397]
[1764945624986,0.05184258,90156.0,90155.0,0.04530397]
[1764945625327,0.05284258,90156.0,90155.0,0.01656397]
[1764945626134,0.05445545,90156.0,90155.0,0.01656397]
[1764945627029,0.01515148,90156.0,90155.0,0.09245066]
[1764945627243,0.01353861,90156.0,90155.0,0.09245066]
[1764945627651,0.01353861,90156.0,90155.0,0.04294066]
[1764945627862,0.01353861,90156.0,90155.0,0.09245066]
[1764945628067,0.01353861,90156.0,90155.0,0.31429082]
[1764945628487,0.01253861,90156.0,90155.0,0.31429082]
[1764945629181,0.22175653,90189.0,90180.0,0.01108893]
[1764945629419,0.03807132,90208.0,90205.0,0.01108585]
[1764945629634,0.22170956,90209.0,90207.0,0.09727561]
[1764945629847,0.22174274,90195.0,90193.0,0.04951]
[1764945630072,0.01108622,90202.0,90193.0,0.04951]
[1764945630073,0.01108585,90205.0,90198.0,0.01108672]
[1764945630273,0.24295231,90204.0,90200.0,0.23281391]
[1764945630491,0.0101462,90203.0,90199.0,0.01108659]
[1764945630695,0.01108745,90192.0,90188.0,0.01108794]
[1764945630900,0.02150397,90190.0,90186.0,0.01108819]
[1764945631105,0.0101462,90190.0,90188.0,0.22175692]
[1764945631330,0.0101462,90190.0,90184.0,0.01108844]
[1764945631331,0.01108573,90206.0,90203.0,0.0110861]
[1764945631542,0.0178,90205.0,90204.0,0.01108598]
[1764945631743,0.01108487,90213.0,90209.0,0.03359]
[1764945631956,0.02888499,90212.0,90207.0,0.01108561]
[1764945632166,0.02888499,90212.0,90202.0,0.22172271]
[1764945632167,0.01108659,90199.0,90194.0,0.22174237]
[1764945632345,0.00099999,90200.0,90195.0,0.01108708]
[1764945632601,0.02888622,90202.0,90199.0,0.04467659]
[1764945632811,0.02888622,90202.0,90199.0,0.03359]
[1764945632812,0.02150397,90201.0,90199.0,0.03359]
[1764945633018,0.24323346,90200.0,90199.0,0.00011956]
[1764945633230,0.02150397,90200.0,90199.0,0.00011956]
[1764945633442,0.23281338,90201.0,90199.0,0.00011956]
[1764945633654,0.02150397,90200.0,90199.0,0.00011956]
[1764945633873,0.02150397,90200.0,90199.0,0.01311956]
[1764945634080,0.02150397,90200.0,90199.0,0.00011956]
[1764945634296,0.45286787,90200.0,90199.0,0.00011956]
[1764945634502,0.47312097,90200.0,90199.0,0.00011956]
[1764945634724,0.53564396,90200.0,90199.0,0.00111956]
[1764945634939,0.53564396,90200.0,90160.0,0.02499]
[1764945634940,0.01109065,90166.0,90160.0,0.04992979]
[1764945635160,0.02150397,90176.0,90173.0,0.22179318]
[1764945635371,0.02150397,90176.0,90160.0,0.02499]
[1764945635372,0.01109053,90167.0,90160.0,0.02499]
[1764945635589,0.0110904,90168.0,90161.0,0.0127334]
[1764945635801,0.0178,90175.0,90161.0,0.0127334]
[1764945635802,0.00299999,90200.0,90175.0,0.03359]
[1764945636009,0.02150397,90189.0,90188.0,0.23284646]
[1764945636274,0.02311684,90189.0,90188.0,0.00011978]
[1764945636496,0.01108659,90199.0,90188.0,0.00011978]
[1764945636497,0.02150397,90194.0,90193.0,0.23283343]
[1764945636710,0.00099999,90200.0,90193.0,0.23283343]
[1764945636711,0.004,90200.0,90199.0,0.2217309]
[1764945636912,0.02584,90200.0,90199.0,0.2563209]
[1764945637124,0.004,90200.0,90199.0,0.3048309]
[1764945637396,0.02150397,90203.0,90202.0,0.01108622]
[1764945637664,0.01784,90205.0,90204.0,0.22171965]
[1764945638268,0.01784,90205.0,90204.0,0.30481965]
[1764945638459,0.01784,90205.0,90204.0,0.22171965]
[1764945638785,0.01108622,90202.0,90195.0,0.01108708]
[1764945638988,0.02976287,90205.0,90175.0,0.3326831]
[1764945638989,0.00161287,90200.0,90198.0,0.22173306]
[1764945639186,0.01784,90200.0,90196.0,0.25781489]
[1764945639421,0.01784,90211.0,90209.0,0.01108536]
[1764945639621,0.01108635,90201.0,90198.0,0.01108672]
[1764945639911,0.01108635,90201.0,90196.0,0.02499]
[1764945639912,0.00261286,90210.0,90209.0,0.22170736]
[1764945640145,0.02150397,90209.0,90207.0,0.23279649]
[1764945640359,0.02150397,90200.0,90196.0,0.03607696]
[1764945640518,0.24323473,90200.0,90197.0,0.01108684]
[1764945640723,0.22174424,90194.0,90192.0,0.00024521]
[1764945640918,0.02150397,90193.0,90192.0,0.23308181]
[1764945641337,0.02150397,90195.0,90193.0,0.01108733]
[1764945641546,0.02150397,90195.0,90193.0,0.2328334]
[1764945641756,0.01108585,90205.0,90202.0,0.01108622]
[1764945641963,0.02150397,90196.0,90195.0,0.01108708]
[1764945642165,0.02150397,90193.0,90192.0,0.01133266]
[1764945642534,0.73585834,90205.0,90198.0,0.22173418]
[1764945642662,0.23281632,90200.0,90196.0,0.02499]
[1764945642865,0.004,90200.0,90199.0,0.03359]
[1764945643067,0.004,90200.0,90198.0,0.232821]
[1764945643068,0.02283999,90200.0,90189.0,0.02499]
[1764945643291,0.02283999,90200.0,90198.0,0.2217341]
[1764945643292,0.01019814,90199.0,90198.0,0.2217341]
[1764945643530,0.02803814,90199.0,90197.0,0.23282325]
[1764945643771,0.03170211,90198.0,90196.0,0.22173853]
[1764945644099,0.01784,90199.0,90194.0,0.01108721]
[1764945644100,0.02150397,90195.0,90194.0,0.01108721]
[1764945644307,0.01019814,90197.0,90195.0,0.22174178]
[1764945644427,0.02150397,90198.0,90196.0,0.22173932]
[1764945644628,0.01019724,90197.0,90196.0,0.22173932]
[1764945644849,0.01019724,90197.0,90196.0,0.22473932]
[1764945645058,0.33850807,90197.0,90196.0,0.003]
[1764945645277,0.76367607,90197.0,90196.0,0.003]
[1764945645511,1.08667607,90197.0,90196.0,0.003]
[1764945645715,1.05190607,90197.0,90196.0,0.003]
[1764945645929,1.03406607,90197.0,90196.0,0.003]
[1764945646132,0.00099999,90180.0,90159.0,0.3327423]
[1764945646339,0.02150397,90185.0,90184.0,0.01108844]
[1764945646542,0.02150397,90182.0,90181.0,0.23286255]
[1764945646864,0.04950082,90182.0,90181.0,0.23286255]
[1764945647012,0.01019685,90182.0,90181.0,0.26951255]
[1764945648051,0.02150397,90180.0,90179.0,0.23286828]
[1764945648256,0.03170082,90180.0,90179.0,0.23286828]
[1764945648458,0.03170082,90180.0,90179.0,0.01108905]
[1764945648645,0.03270081,90180.0,90173.0,0.01108979]
[1764945648886,0.03270081,90180.0,90174.0,0.01108967]
[1764945648887,0.01019685,90179.0,90174.0,0.01108967]
[1764945649135,0.02150397,90176.0,90174.0,0.01108967]
[1764945649342,0.01019685,90175.0,90173.0,0.23288519]
[1764945649546,0.01019685,90174.0,90173.0,0.23288519]
[1764945649747,0.01019685,90174.0,90173.0,0.01108979]
[1764945650043,0.01019685,90174.0,90173.0,0.10366979]
[1764945650681,0.323,90188.0,90187.0,0.22176145]
[1764945650958,0.35101034,90188.0,90186.0,0.22176247]
[1764945651135,0.01021034,90187.0,90186.0,0.22176247]
[1764945651398,0.01021034,90187.0,90186.0,0.22176391]
[1764945651572,0.01021034,90187.0,90186.0,0.25841391]
[1764945651957,0.01021034,90187.0,90186.0,0.31434391]
[1764945652573,0.01021034,90187.0,90186.0,0.22176391]
[1764945652773,0.01021034,90187.0,90186.0,0.31434391]
[1764945653147,0.01021034,90187.0,90186.0,0.31634391]
[1764945653372,0.01021034,90187.0,90186.0,0.31434391]
[1764945653625,0.03171431,90187.0,90186.0,0.31434391]
[1764945653845,0.01121034,90187.0,90186.0,0.26041391]
[1764945654111,0.01121034,90187.0,90186.0,0.25841391]
[1764945654359,0.01121034,90187.0,90186.0,0.31434391]
[1764945654555,0.01321034,90187.0,90186.0,0.33234391]
[1764945654760,0.003,90187.0,90186.0,0.33234391]
[1764945655602,0.002,90187.0,90186.0,0.33234391]
[1764945655859,0.002,90187.0,90186.0,0.27641391]
[1764945656052,0.01322798,90187.0,90186.0,0.018]
[1764945656280,0.02231605,90187.0,90184.0,0.02775893]
[1764945656448,0.01022798,90186.0,90184.0,0.26061515]
[1764945656662,0.01022798,90185.0,90184.0,0.26061515]
[1764945656909,0.01022798,90185.0,90184.0,0.02775893]
[1764945657674,0.33322798,90185.0,90184.0,0.02775893]
[1764945657853,0.35573195,90185.0,90184.0,0.01023893]
[1764945658054,0.42869798,90185.0,90184.0,0.00023893]
[1764945658281,0.35473195,90185.0,90184.0,0.00023893]
[1764945658624,0.45020195,90185.0,90184.0,0.00023893]
[1764945658866,1.01340907,90185.0,90184.0,0.00023893]
[1764945659318,0.83524707,90185.0,90184.0,0.00023893]
[1764945659527,0.70651195,90185.0,90184.0,0.00323893]
[1764945659694,0.70551195,90185.0,90184.0,0.00023893]
[1764945659889,0.74395195,90185.0,90184.0,0.00023893]
[1764945660119,0.74395195,90185.0,90184.0,0.00323893]
[1764945660120,0.82659381,90185.0,90184.0,0.00323893]
[1764945660316,0.91837003,90185.0,90184.0,0.00323893]
[1764945660520,0.323,90155.0,90153.0,0.24683346]
[1764945660723,0.01022798,90154.0,90153.0,0.24683346]
[1764945661035,0.34450397,90152.0,90146.0,0.04073311]
[1764945661240,0.35102798,90152.0,90149.0,0.01109274]
[1764945661445,0.35102798,90152.0,90150.0,0.22185086]
[1764945661647,0.57299539,90152.0,90146.0,0.02964]
[1764945661847,0.68996936,90152.0,90142.0,0.0110936]
[1764945662048,0.37265182,90152.0,90147.0,0.01109299]
[1764945662252,0.33334785,90152.0,90151.0,0.05562735]
[1764945662453,0.01034785,90152.0,90151.0,0.11044735]
[1764945662669,0.00011987,90152.0,90151.0,0.11177652]
[1764945663351,0.00211987,90152.0,90151.0,0.11262512]
[1764945663550,0.00411987,90152.0,90151.0,0.12844735]
[1764945663681,0.00211987,90152.0,90151.0,0.12844735]
[1764945664093,0.00211987,90152.0,90151.0,0.13047082]
[1764945664317,0.00211987,90152.0,90151.0,0.07362735]
[1764945664487,0.00211987,90152.0,90151.0,0.13046786]
[1764945665096,0.02250396,90180.0,90174.0,0.22179314]
[1764945665415,0.02250396,90180.0,90179.0,0.05388]
[1764945665416,0.00011996,90180.0,90179.0,0.05388]
[1764945665775,0.00011996,90180.0,90179.0,0.1087]
[1764945666423,0.00011996,90180.0,90179.0,0.10992697]
[1764945666632,0.00011996,90180.0,90179.0,0.11892697]
[1764945666633,0.00211996,90180.0,90179.0,0.11892697]
[1764945667066,0.00011996,90180.0,90179.0,0.10992697]
[1764945667471,0.00211996,90180.0,90179.0,0.12892697]
[1764945667948,0.01022866,90202.0,90201.0,0.22172703]
[1764945668158,0.01023282,90205.0,90204.0,0.22171811]
[1764945668308,0.01023282,90205.0,90200.0,0.04072647]
[1764945668309,0.40925,90199.0,90190.0,0.0110877]
[1764945668634,0.0178,90198.0,90197.0,0.22173686]
[1764945668860,0.0178,90198.0,90190.0,0.0110877]
[1764945668861,0.01108684,90197.0,90193.0,0.01108733]